Workbook

Sheet Pelno ir nuostolio ataskaita
B1: Pelnas ir nuostolis Išrašas
D3: ANKSTESNIS LAIKOTARPIS | E3: BIUDŽETAS | F3: DABARTINIS LAIKOTARPIS | H3: DABARTINIS LAIKOTARPIS KAIP PARDAVIMO % | I3: % POKYTIS, PALYGINTI SU ANKSTESNIU LAIKOTARPIU | J3: % SKIRTUMAS NUO BIUDŽETO
B4: Pardavimo pajamos
B6: 1 produktas / paslauga | D6: 40 | E6: 50 | F6: 45 | H6: =IFERROR(PardavimoPajamos[[#This Row],[Dabartinis Laikotarpis]]/SUBTOTAL(109,PardavimoPajamos[Dabartinis Laikotarpis]),0) -> 100.0% | I6: =IFERROR(PardavimoPajamos[[#This Row],[Dabartinis Laikotarpis]]/PardavimoPajamos[[#This Row],[Ankstesnis Laikotarpis]]-1,0) -> 12.5% | J6: =IFERROR(PardavimoPajamos[[#This Row],[Dabartinis Laikotarpis]]/PardavimoPajamos[[#This Row],[Biudžetas]]-1,0) -> -10.0%
B7: 2 produktas / paslauga | H7: =IFERROR(PardavimoPajamos[[#This Row],[Dabartinis Laikotarpis]]/SUBTOTAL(109,PardavimoPajamos[Dabartinis Laikotarpis]),0) -> 0 | I7: =IFERROR(PardavimoPajamos[[#This Row],[Dabartinis Laikotarpis]]/PardavimoPajamos[[#This Row],[Ankstesnis Laikotarpis]]-1,0) -> 0 | J7: =IFERROR(PardavimoPajamos[[#This Row],[Dabartinis Laikotarpis]]/PardavimoPajamos[[#This Row],[Biudžetas]]-1,0) -> 0
B8: 3 produktas / paslauga | H8: =IFERROR(PardavimoPajamos[[#This Row],[Dabartinis Laikotarpis]]/SUBTOTAL(109,PardavimoPajamos[Dabartinis Laikotarpis]),0) -> 0 | I8: =IFERROR(PardavimoPajamos[[#This Row],[Dabartinis Laikotarpis]]/PardavimoPajamos[[#This Row],[Ankstesnis Laikotarpis]]-1,0) -> 0 | J8: =IFERROR(PardavimoPajamos[[#This Row],[Dabartinis Laikotarpis]]/PardavimoPajamos[[#This Row],[Biudžetas]]-1,0) -> 0
B9: 4 produktas / paslauga | H9: =IFERROR(PardavimoPajamos[[#This Row],[Dabartinis Laikotarpis]]/SUBTOTAL(109,PardavimoPajamos[Dabartinis Laikotarpis]),0) -> 0 | I9: =IFERROR(PardavimoPajamos[[#This Row],[Dabartinis Laikotarpis]]/PardavimoPajamos[[#This Row],[Ankstesnis Laikotarpis]]-1,0) -> 0 | J9: =IFERROR(PardavimoPajamos[[#This Row],[Dabartinis Laikotarpis]]/PardavimoPajamos[[#This Row],[Biudžetas]]-1,0) -> 0
B10: Iš viso | D10: =SUBTOTAL(109,PardavimoPajamos[Ankstesnis Laikotarpis]) -> 40 | E10: =SUBTOTAL(109,PardavimoPajamos[Biudžetas]) -> 50 | F10: =SUBTOTAL(109,PardavimoPajamos[Dabartinis Laikotarpis]) -> 45 | H10: =IFERROR(PardavimoPajamos[[#Totals],[Dabartinis Laikotarpis]]/PardavimoPajamos[[#Totals],[Dabartinis Laikotarpis]],0) -> 100.0% | I10: =IFERROR(PardavimoPajamos[[#Totals],[Dabartinis Laikotarpis]]/PardavimoPajamos[[#Totals],[Ankstesnis Laikotarpis]]-1,0) -> 12.5% | J10: =IFERROR(PardavimoPajamos[[#Totals],[Dabartinis Laikotarpis]]/PardavimoPajamos[[#Totals],[Biudžetas]]-1,0) -> -10.0%
B12: Pardavimo išlaidos
B14: 1 produktas / paslauga | E14: 2 | F14: 3 | H14: =IFERROR(PardavimoKaštai[[#This Row],[Dabartinis Laikotarpis]]/SUBTOTAL(109,PardavimoPajamos[Dabartinis Laikotarpis]),0) -> 6.7% | I14: =IFERROR(PardavimoKaštai[[#This Row],[Dabartinis Laikotarpis]]/PardavimoKaštai[[#This Row],[Ankstesnis Laikotarpis]]-1,0) -> 0 | J14: =IFERROR(PardavimoKaštai[[#This Row],[Dabartinis Laikotarpis]]/PardavimoKaštai[[#This Row],[Biudžetas]]-1,0) -> 50.0%
B15: 2 produktas / paslauga | E15: 5 | F15: 3 | H15: =IFERROR(PardavimoKaštai[[#This Row],[Dabartinis Laikotarpis]]/SUBTOTAL(109,PardavimoPajamos[Dabartinis Laikotarpis]),0) -> 6.7% | I15: =IFERROR(PardavimoKaštai[[#This Row],[Dabartinis Laikotarpis]]/PardavimoKaštai[[#This Row],[Ankstesnis Laikotarpis]]-1,0) -> 0 | J15: =IFERROR(PardavimoKaštai[[#This Row],[Dabartinis Laikotarpis]]/PardavimoKaštai[[#This Row],[Biudžetas]]-1,0) -> -40.0%
B16: 3 produktas / paslauga | F16: 1 | H16: =IFERROR(PardavimoKaštai[[#This Row],[Dabartinis Laikotarpis]]/SUBTOTAL(109,PardavimoPajamos[Dabartinis Laikotarpis]),0) -> 2.2% | I16: =IFERROR(PardavimoKaštai[[#This Row],[Dabartinis Laikotarpis]]/PardavimoKaštai[[#This Row],[Ankstesnis Laikotarpis]]-1,0) -> 0 | J16: =IFERROR(PardavimoKaštai[[#This Row],[Dabartinis Laikotarpis]]/PardavimoKaštai[[#This Row],[Biudžetas]]-1,0) -> 0
B17: 4 produktas / paslauga | H17: =IFERROR(PardavimoKaštai[[#This Row],[Dabartinis Laikotarpis]]/SUBTOTAL(109,PardavimoPajamos[Dabartinis Laikotarpis]),0) -> 0 | I17: =IFERROR(PardavimoKaštai[[#This Row],[Dabartinis Laikotarpis]]/PardavimoKaštai[[#This Row],[Ankstesnis Laikotarpis]]-1,0) -> 0 | J17: =IFERROR(PardavimoKaštai[[#This Row],[Dabartinis Laikotarpis]]/PardavimoKaštai[[#This Row],[Biudžetas]]-1,0) -> 0
B18: Iš viso | D18: =SUBTOTAL(109,PardavimoKaštai[Ankstesnis Laikotarpis]) -> 0 | E18: =SUBTOTAL(109,PardavimoKaštai[Biudžetas]) -> 7 | F18: =SUBTOTAL(109,PardavimoKaštai[Dabartinis Laikotarpis]) -> 7 | H18: =IFERROR(PardavimoKaštai[[#Totals],[Dabartinis Laikotarpis]]/SUBTOTAL(109,PardavimoPajamos[Dabartinis Laikotarpis]),0) -> 15.6% | I18: =IFERROR(PardavimoKaštai[[#Totals],[Dabartinis Laikotarpis]]/PardavimoKaštai[[#Totals],[Ankstesnis Laikotarpis]]-1,0) -> 0 | J18: =IFERROR(PardavimoKaštai[[#Totals],[Dabartinis Laikotarpis]]/PardavimoKaštai[[#Totals],[Biudžetas]]-1,0) -> 0
J19: =IFERROR(PardavimoKaštai[[#Totals],[Dabartinis Laikotarpis]]/PardavimoKaštai[[#Totals],[Biudžetas]]-1,0) -> 0
B21: Bendrasis pelnas | D21: =SUM(PardavimoPajamos[Ankstesnis Laikotarpis])-SUM(PardavimoKaštai[Ankstesnis Laikotarpis]) -> 40 | E21: =SUM(PardavimoPajamos[Biudžetas])-SUM(PardavimoKaštai[Biudžetas]) -> 43 | F21: =SUM(PardavimoPajamos[Dabartinis Laikotarpis])-SUM(PardavimoKaštai[Dabartinis Laikotarpis]) -> 38 | H21: =IFERROR(F21/SUBTOTAL(109,PardavimoPajamos[Dabartinis Laikotarpis]),0) -> 84.4% | I21: =IFERROR(F21/D21-1,0) -> -5.0% | J21: =IFERROR(F21/E21-1,0) -> -11.6%
B23: Veiklos išlaidos: pardavimas ir rinkodara
B25: Reklama | E25: 22 | F25: 19 | H25: =IFERROR(PardavimasIrRinkodara[[#This Row],[Dabartinis Laikotarpis]]/SUBTOTAL(109,PardavimoPajamos[Dabartinis Laikotarpis]),0) -> 42.2% | I25: =IFERROR(PardavimasIrRinkodara[[#This Row],[Dabartinis Laikotarpis]]/PardavimasIrRinkodara[[#This Row],[Ankstesnis Laikotarpis]]-1,0) -> 0 | J25: =IFERROR(PardavimasIrRinkodara[[#This Row],[Dabartinis Laikotarpis]]/PardavimasIrRinkodara[[#This Row],[Biudžetas]]-1,0) -> -13.6%
B26: Tiesioginė rinkodara | H26: =IFERROR(PardavimasIrRinkodara[[#This Row],[Dabartinis Laikotarpis]]/SUBTOTAL(109,PardavimoPajamos[Dabartinis Laikotarpis]),0) -> 0 | I26: =IFERROR(PardavimasIrRinkodara[[#This Row],[Dabartinis Laikotarpis]]/PardavimasIrRinkodara[[#This Row],[Ankstesnis Laikotarpis]]-1,0) -> 0 | J26: =IFERROR(PardavimasIrRinkodara[[#This Row],[Dabartinis Laikotarpis]]/PardavimasIrRinkodara[[#This Row],[Biudžetas]]-1,0) -> 0
B27: Kitos išlaidos (nurodyti) | H27: =IFERROR(PardavimasIrRinkodara[[#This Row],[Dabartinis Laikotarpis]]/SUBTOTAL(109,PardavimoPajamos[Dabartinis Laikotarpis]),0) -> 0 | I27: =IFERROR(PardavimasIrRinkodara[[#This Row],[Dabartinis Laikotarpis]]/PardavimasIrRinkodara[[#This Row],[Ankstesnis Laikotarpis]]-1,0) -> 0 | J27: =IFERROR(PardavimasIrRinkodara[[#This Row],[Dabartinis Laikotarpis]]/PardavimasIrRinkodara[[#This Row],[Biudžetas]]-1,0) -> 0
B28: Iš viso | D28: =SUBTOTAL(109,PardavimasIrRinkodara[Ankstesnis Laikotarpis]) -> 0 | E28: =SUBTOTAL(109,PardavimasIrRinkodara[Biudžetas]) -> 22 | F28: =SUBTOTAL(109,PardavimasIrRinkodara[Dabartinis Laikotarpis]) -> 19 | H28: =IFERROR(PardavimasIrRinkodara[[#Totals],[Dabartinis Laikotarpis]]/SUBTOTAL(109,PardavimoPajamos[Dabartinis Laikotarpis]),0) -> 42.2% | I28: =IFERROR(PardavimasIrRinkodara[[#Totals],[Dabartinis Laikotarpis]]/PardavimasIrRinkodara[[#Totals],[Ankstesnis Laikotarpis]]-1,0) -> 0 | J28: =IFERROR(PardavimasIrRinkodara[[#Totals],[Dabartinis Laikotarpis]]/PardavimasIrRinkodara[[#Totals],[Biudžetas]]-1,0) -> -13.6%
B30: Veiklos išlaidos: bendrosios ir administravimo
B32: Atlyginimai | E32: 56 | F32: 51 | H32: =IFERROR(BendrosiosIrAdministracinės[[#This Row],[Dabartinis Laikotarpis]]/SUBTOTAL(109,PardavimoPajamos[Dabartinis Laikotarpis]),0) -> 113.3% | I32: =IFERROR(BendrosiosIrAdministracinės[[#This Row],[Dabartinis Laikotarpis]]/BendrosiosIrAdministracinės[[#This Row],[Ankstesnis Laikotarpis]]-1,0) -> 0 | J32: =IFERROR(BendrosiosIrAdministracinės[[#This Row],[Dabartinis Laikotarpis]]/BendrosiosIrAdministracinės[[#This Row],[Biudžetas]]-1,0) -> -8.9%
B33: Išorinės paslaugos | H33: =IFERROR(BendrosiosIrAdministracinės[[#This Row],[Dabartinis Laikotarpis]]/SUBTOTAL(109,PardavimoPajamos[Dabartinis Laikotarpis]),0) -> 0 | I33: =IFERROR(BendrosiosIrAdministracinės[[#This Row],[Dabartinis Laikotarpis]]/BendrosiosIrAdministracinės[[#This Row],[Ankstesnis Laikotarpis]]-1,0) -> 0 | J33: =IFERROR(BendrosiosIrAdministracinės[[#This Row],[Dabartinis Laikotarpis]]/BendrosiosIrAdministracinės[[#This Row],[Biudžetas]]-1,0) -> 0
B34: Reikmenys | H34: =IFERROR(BendrosiosIrAdministracinės[[#This Row],[Dabartinis Laikotarpis]]/SUBTOTAL(109,PardavimoPajamos[Dabartinis Laikotarpis]),0) -> 0 | I34: =IFERROR(BendrosiosIrAdministracinės[[#This Row],[Dabartinis Laikotarpis]]/BendrosiosIrAdministracinės[[#This Row],[Ankstesnis Laikotarpis]]-1,0) -> 0 | J34: =IFERROR(BendrosiosIrAdministracinės[[#This Row],[Dabartinis Laikotarpis]]/BendrosiosIrAdministracinės[[#This Row],[Biudžetas]]-1,0) -> 0
B35: Maitinimas ir pramogos | H35: =IFERROR(BendrosiosIrAdministracinės[[#This Row],[Dabartinis Laikotarpis]]/SUBTOTAL(109,PardavimoPajamos[Dabartinis Laikotarpis]),0) -> 0 | I35: =IFERROR(BendrosiosIrAdministracinės[[#This Row],[Dabartinis Laikotarpis]]/BendrosiosIrAdministracinės[[#This Row],[Ankstesnis Laikotarpis]]-1,0) -> 0 | J35: =IFERROR(BendrosiosIrAdministracinės[[#This Row],[Dabartinis Laikotarpis]]/BendrosiosIrAdministracinės[[#This Row],[Biudžetas]]-1,0) -> 0
B36: Nuoma | H36: =IFERROR(BendrosiosIrAdministracinės[[#This Row],[Dabartinis Laikotarpis]]/SUBTOTAL(109,PardavimoPajamos[Dabartinis Laikotarpis]),0) -> 0 | I36: =IFERROR(BendrosiosIrAdministracinės[[#This Row],[Dabartinis Laikotarpis]]/BendrosiosIrAdministracinės[[#This Row],[Ankstesnis Laikotarpis]]-1,0) -> 0 | J36: =IFERROR(BendrosiosIrAdministracinės[[#This Row],[Dabartinis Laikotarpis]]/BendrosiosIrAdministracinės[[#This Row],[Biudžetas]]-1,0) -> 0
B37: Telefonas | H37: =IFERROR(BendrosiosIrAdministracinės[[#This Row],[Dabartinis Laikotarpis]]/SUBTOTAL(109,PardavimoPajamos[Dabartinis Laikotarpis]),0) -> 0 | I37: =IFERROR(BendrosiosIrAdministracinės[[#This Row],[Dabartinis Laikotarpis]]/BendrosiosIrAdministracinės[[#This Row],[Ankstesnis Laikotarpis]]-1,0) -> 0 | J37: =IFERROR(BendrosiosIrAdministracinės[[#This Row],[Dabartinis Laikotarpis]]/BendrosiosIrAdministracinės[[#This Row],[Biudžetas]]-1,0) -> 0
B38: Komunalinės paslaugos | H38: =IFERROR(BendrosiosIrAdministracinės[[#This Row],[Dabartinis Laikotarpis]]/SUBTOTAL(109,PardavimoPajamos[Dabartinis Laikotarpis]),0) -> 0 | I38: =IFERROR(BendrosiosIrAdministracinės[[#This Row],[Dabartinis Laikotarpis]]/BendrosiosIrAdministracinės[[#This Row],[Ankstesnis Laikotarpis]]-1,0) -> 0 | J38: =IFERROR(BendrosiosIrAdministracinės[[#This Row],[Dabartinis Laikotarpis]]/BendrosiosIrAdministracinės[[#This Row],[Biudžetas]]-1,0) -> 0
B39: Nusidėvėjimas | H39: =IFERROR(BendrosiosIrAdministracinės[[#This Row],[Dabartinis Laikotarpis]]/SUBTOTAL(109,PardavimoPajamos[Dabartinis Laikotarpis]),0) -> 0 | I39: =IFERROR(BendrosiosIrAdministracinės[[#This Row],[Dabartinis Laikotarpis]]/BendrosiosIrAdministracinės[[#This Row],[Ankstesnis Laikotarpis]]-1,0) -> 0 | J39: =IFERROR(BendrosiosIrAdministracinės[[#This Row],[Dabartinis Laikotarpis]]/BendrosiosIrAdministracinės[[#This Row],[Biudžetas]]-1,0) -> 0
B40: Draudimas | H40: =IFERROR(BendrosiosIrAdministracinės[[#This Row],[Dabartinis Laikotarpis]]/SUBTOTAL(109,PardavimoPajamos[Dabartinis Laikotarpis]),0) -> 0 | I40: =IFERROR(BendrosiosIrAdministracinės[[#This Row],[Dabartinis Laikotarpis]]/BendrosiosIrAdministracinės[[#This Row],[Ankstesnis Laikotarpis]]-1,0) -> 0 | J40: =IFERROR(BendrosiosIrAdministracinės[[#This Row],[Dabartinis Laikotarpis]]/BendrosiosIrAdministracinės[[#This Row],[Biudžetas]]-1,0) -> 0
B41: Taisymas ir priežiūra | H41: =IFERROR(BendrosiosIrAdministracinės[[#This Row],[Dabartinis Laikotarpis]]/SUBTOTAL(109,PardavimoPajamos[Dabartinis Laikotarpis]),0) -> 0 | I41: =IFERROR(BendrosiosIrAdministracinės[[#This Row],[Dabartinis Laikotarpis]]/BendrosiosIrAdministracinės[[#This Row],[Ankstesnis Laikotarpis]]-1,0) -> 0 | J41: =IFERROR(BendrosiosIrAdministracinės[[#This Row],[Dabartinis Laikotarpis]]/BendrosiosIrAdministracinės[[#This Row],[Biudžetas]]-1,0) -> 0
B42: Kitos išlaidos (nurodyti) | H42: =IFERROR(BendrosiosIrAdministracinės[[#This Row],[Dabartinis Laikotarpis]]/SUBTOTAL(109,PardavimoPajamos[Dabartinis Laikotarpis]),0) -> 0 | I42: =IFERROR(BendrosiosIrAdministracinės[[#This Row],[Dabartinis Laikotarpis]]/BendrosiosIrAdministracinės[[#This Row],[Ankstesnis Laikotarpis]]-1,0) -> 0 | J42: =IFERROR(BendrosiosIrAdministracinės[[#This Row],[Dabartinis Laikotarpis]]/BendrosiosIrAdministracinės[[#This Row],[Biudžetas]]-1,0) -> 0
B43: Iš viso | D43: =SUBTOTAL(109,BendrosiosIrAdministracinės[Ankstesnis Laikotarpis]) -> 0 | E43: =SUBTOTAL(109,BendrosiosIrAdministracinės[Biudžetas]) -> 56 | F43: =SUBTOTAL(109,BendrosiosIrAdministracinės[Dabartinis Laikotarpis]) -> 51 | H43: =IFERROR(BendrosiosIrAdministracinės[[#Totals],[Dabartinis Laikotarpis]]/SUBTOTAL(109,PardavimoPajamos[Dabartinis Laikotarpis]),0) -> 113.3% | I43: =IFERROR(BendrosiosIrAdministracinės[[#Totals],[Dabartinis Laikotarpis]]/BendrosiosIrAdministracinės[[#Totals],[Ankstesnis Laikotarpis]]-1,0) -> 0 | J43: =IFERROR(BendrosiosIrAdministracinės[[#Totals],[Dabartinis Laikotarpis]]/BendrosiosIrAdministracinės[[#Totals],[Biudžetas]]-1,0) -> -8.9%
B46: Veiklos išlaidos: kitos
B48: 1 kitos veiklos išlaidos | E48: 10 | H48: =IFERROR(KitųOperaciniųIšlaidųKategorija[[#This Row],[Dabartinis Laikotarpis]]/SUBTOTAL(109,PardavimoPajamos[Dabartinis Laikotarpis]),0) -> 0 | I48: =IFERROR(KitųOperaciniųIšlaidųKategorija[[#This Row],[Dabartinis Laikotarpis]]/KitųOperaciniųIšlaidųKategorija[[#This Row],[Ankstesnis Laikotarpis]]-1,0) -> 0 | J48: =IFERROR(KitųOperaciniųIšlaidųKategorija[[#This Row],[Dabartinis Laikotarpis]]/KitųOperaciniųIšlaidųKategorija[[#This Row],[Biudžetas]]-1,0) -> -100.0%
B49: 2 kitos veiklos išlaidos | H49: =IFERROR(KitųOperaciniųIšlaidųKategorija[[#This Row],[Dabartinis Laikotarpis]]/SUBTOTAL(109,PardavimoPajamos[Dabartinis Laikotarpis]),0) -> 0 | I49: =IFERROR(KitųOperaciniųIšlaidųKategorija[[#This Row],[Dabartinis Laikotarpis]]/KitųOperaciniųIšlaidųKategorija[[#This Row],[Ankstesnis Laikotarpis]]-1,0) -> 0 | J49: =IFERROR(KitųOperaciniųIšlaidųKategorija[[#This Row],[Dabartinis Laikotarpis]]/KitųOperaciniųIšlaidųKategorija[[#This Row],[Biudžetas]]-1,0) -> 0
B50: Iš viso | D50: =SUBTOTAL(109,KitųOperaciniųIšlaidųKategorija[Ankstesnis Laikotarpis]) -> 0 | E50: =SUBTOTAL(109,KitųOperaciniųIšlaidųKategorija[Biudžetas]) -> 10 | F50: =SUBTOTAL(109,KitųOperaciniųIšlaidųKategorija[Dabartinis Laikotarpis]) -> 0 | H50: =IFERROR(KitųOperaciniųIšlaidųKategorija[[#Totals],[Dabartinis Laikotarpis]]/SUBTOTAL(109,PardavimoPajamos[Dabartinis Laikotarpis]),0) -> 0 | I50: =IFERROR(KitųOperaciniųIšlaidųKategorija[[#Totals],[Dabartinis Laikotarpis]]/KitųOperaciniųIšlaidųKategorija[[#Totals],[Ankstesnis Laikotarpis]]-1,0) -> 0 | J50: =IFERROR(KitųOperaciniųIšlaidųKategorija[[#Totals],[Dabartinis Laikotarpis]]/KitųOperaciniųIšlaidųKategorija[[#Totals],[Biudžetas]]-1,0) -> -100.0%
B52: Bendrosios veiklos išlaidos | D52: =SUM(PardavimasIrRinkodara[Ankstesnis Laikotarpis],BendrosiosIrAdministracinės[Ankstesnis Laikotarpis],KitųOperaciniųIšlaidųKategorija[Ankstesnis Laikotarpis]) -> 0 | E52: =SUM(PardavimasIrRinkodara[Biudžetas],BendrosiosIrAdministracinės[Biudžetas],KitųOperaciniųIšlaidųKategorija[Biudžetas]) -> 88 | F52: =SUM(PardavimasIrRinkodara[Dabartinis Laikotarpis],BendrosiosIrAdministracinės[Dabartinis Laikotarpis],KitųOperaciniųIšlaidųKategorija[Dabartinis Laikotarpis]) -> 70 | H52: =IFERROR(F52/SUBTOTAL(109,PardavimoPajamos[Dabartinis Laikotarpis]),0) -> 155.6% | I52: =IFERROR(F52/D52-1,0) -> 0 | J52: =IFERROR(F52/E52-1,0) -> -20.5%
B54: Operacijų pajamos | D54: =D21-D52 -> 40 | E54: =E21-E52 -> -45 | F54: =F21-F52 -> -32 | H54: =IFERROR(F54/SUBTOTAL(109,PardavimoPajamos[Dabartinis Laikotarpis]),0) -> -71.1% | I54: =IFERROR(IF(D54=F54,0,IF(F54>D54,ABS((F54/D54)-1),IF(AND(F54<D54,D54<0),-((F54/D54)-1),(F54/D54)-1))),0) -> -180.0% | J54: =IFERROR(IF(E54=F54,0,IF(F54>E54,ABS((F54/E54)-1),IF(AND(F54<E54,E54<0),-((F54/E54)-1),(F54/E54)-1))),0) -> 28.9%
B56: Kitos pajamos | H56: =IFERROR(F56/SUBTOTAL(109,PardavimoPajamos[Dabartinis Laikotarpis]),0) -> 0 | I56: =IFERROR(F56/D56-1,0) -> 0 | J56: =IFERROR(F56/E56-1,0) -> 0
B58: Mokesčiai
B60: Pajamų mokesčiai | E60: 32 | F60: 30 | H60: =IFERROR(Mokesčiai[[#This Row],[Dabartinis Laikotarpis]]/SUBTOTAL(109,PardavimoPajamos[Dabartinis Laikotarpis]),0) -> 66.7% | I60: =IFERROR(Mokesčiai[[#This Row],[Dabartinis Laikotarpis]]/Mokesčiai[[#This Row],[Ankstesnis Laikotarpis]]-1,0) -> 0 | J60: =IFERROR(Mokesčiai[[#This Row],[Dabartinis Laikotarpis]]/Mokesčiai[[#This Row],[Biudžetas]]-1,0) -> -6.3%
B61: Atlyginimų mokesčiai | H61: =IFERROR(Mokesčiai[[#This Row],[Dabartinis Laikotarpis]]/SUBTOTAL(109,PardavimoPajamos[Dabartinis Laikotarpis]),0) -> 0 | I61: =IFERROR(Mokesčiai[[#This Row],[Dabartinis Laikotarpis]]/Mokesčiai[[#This Row],[Ankstesnis Laikotarpis]]-1,0) -> 0 | J61: =IFERROR(Mokesčiai[[#This Row],[Dabartinis Laikotarpis]]/Mokesčiai[[#This Row],[Biudžetas]]-1,0) -> 0
B62: Nekilnojamojo turto mokesčiai | H62: =IFERROR(Mokesčiai[[#This Row],[Dabartinis Laikotarpis]]/SUBTOTAL(109,PardavimoPajamos[Dabartinis Laikotarpis]),0) -> 0 | I62: =IFERROR(Mokesčiai[[#This Row],[Dabartinis Laikotarpis]]/Mokesčiai[[#This Row],[Ankstesnis Laikotarpis]]-1,0) -> 0 | J62: =IFERROR(Mokesčiai[[#This Row],[Dabartinis Laikotarpis]]/Mokesčiai[[#This Row],[Biudžetas]]-1,0) -> 0
B63: Kiti mokesčiai (nurodyti) | H63: =IFERROR(Mokesčiai[[#This Row],[Dabartinis Laikotarpis]]/SUBTOTAL(109,PardavimoPajamos[Dabartinis Laikotarpis]),0) -> 0 | I63: =IFERROR(Mokesčiai[[#This Row],[Dabartinis Laikotarpis]]/Mokesčiai[[#This Row],[Ankstesnis Laikotarpis]]-1,0) -> 0 | J63: =IFERROR(Mokesčiai[[#This Row],[Dabartinis Laikotarpis]]/Mokesčiai[[#This Row],[Biudžetas]]-1,0) -> 0
B64: Iš viso | D64: =SUBTOTAL(109,Mokesčiai[Ankstesnis Laikotarpis]) -> 0 | E64: =SUBTOTAL(109,Mokesčiai[Biudžetas]) -> 32 | F64: =SUBTOTAL(109,Mokesčiai[Dabartinis Laikotarpis]) -> 30 | H64: =IFERROR(Mokesčiai[[#Totals],[Dabartinis Laikotarpis]]/SUBTOTAL(109,PardavimoPajamos[Dabartinis Laikotarpis]),0) -> 66.7% | I64: =IFERROR(Mokesčiai[[#Totals],[Dabartinis Laikotarpis]]/Mokesčiai[[#Totals],[Ankstesnis Laikotarpis]]-1,0) -> 0 | J64: =IFERROR(Mokesčiai[[#Totals],[Dabartinis Laikotarpis]]/Mokesčiai[[#Totals],[Biudžetas]]-1,0) -> -6.3%
B66: Grynasis pelnas | D66: =D54+D56-Mokesčiai[[#Totals],[Ankstesnis Laikotarpis]] -> 40 | E66: =E54+E56-Mokesčiai[[#Totals],[Ankstesnis Laikotarpis]] -> -45 | F66: =F54+F56-Mokesčiai[[#Totals],[Ankstesnis Laikotarpis]] -> -32 | H66: =IFERROR(F66/SUBTOTAL(109,PardavimoPajamos[Dabartinis Laikotarpis]),0) -> -71.1% | I66: =IFERROR(IF(D66=F66,0,IF(F66>D66,ABS((F66/D66)-1),IF(AND(F66<D66,D66<0),-((F66/D66)-1),(F66/D66)-1))),0) -> -180.0% | J66: =IFERROR(IF(E66=F66,0,IF(F66>E66,ABS((F66/E66)-1),IF(AND(F66<E66,E66<0),-((F66/E66)-1),(F66/E66)-1))),0) -> 28.9%
B67: Bendrasis pelnas | D67: =D21/SUM(PardavimoPajamos[Ankstesnis Laikotarpis]) -> 100.0% | E67: =E21/SUM(PardavimoPajamos[Biudžetas]) -> 86.0% | F67: =F21/SUM(PardavimoPajamos[Dabartinis Laikotarpis]) -> 84.4%
B68: Pardavimo grąža | D68: =D66/SUM(PardavimoPajamos[Ankstesnis Laikotarpis]) -> 100.0% | E68: =E66/SUM(PardavimoPajamos[Biudžetas]) -> -90.0% | F68: =F66/SUM(PardavimoPajamos[Dabartinis Laikotarpis]) -> -71.1%
